[Event "Live Chess"]
[Site "Chess.com"]
[Date "2023.05.20"]
[Round "-"]
[White "diana21strabt"]
[Black "MJMykh"]
[Result "1/2-1/2"]
[WhiteElo "1671"]
[BlackElo "1110"]
[TimeControl "300"]
[EndTime "12:13:06 PDT"]
[Termination "Game drawn by repetition"]

1. e4 {[%clk 0:04:47.6]} 1... e5 {[%clk 0:04:57.3]} 2. Nf3 {[%clk 0:04:46.6]}
2... Nc6 {[%clk 0:04:55.8]} 3. d4 {[%clk 0:04:45]} 3... exd4 {[%clk 0:04:54.2]}
4. Bc4 {[%clk 0:04:44.2]} 4... h6 {[%clk 0:04:50.9]} 5. Nxd4 {[%clk 0:04:40.5]}
5... Nxd4 {[%clk 0:04:49.3]} 6. Qxd4 {[%clk 0:04:39.8]} 6... Nf6 {[%clk
0:04:48.9]} 7. Nc3 {[%clk 0:04:38.6]} 7... b6 {[%clk 0:04:46.5]} 8. O-O {[%clk
0:04:34.3]} 8... Bc5 {[%clk 0:04:45.9]} 9. Qd3 {[%clk 0:04:28.8]} 9... O-O
{[%clk 0:04:43.3]} 10. Be3 {[%clk 0:03:59.6]} 10... Bxe3 {[%clk 0:04:39.7]} 11.
fxe3 {[%clk 0:03:57.9]} 11... a6 {[%clk 0:04:34.2]} 12. Rad1 {[%clk 0:03:54.3]}
12... b5 {[%clk 0:04:24]} 13. Bb3 {[%clk 0:03:50.2]} 13... c5 {[%clk 0:04:21]}
14. Bd5 {[%clk 0:03:45.9]} 14... Rb8 {[%clk 0:04:14.8]} 15. e5 {[%clk
0:03:43.6]} 15... Nxd5 {[%clk 0:04:13.4]} 16. Nxd5 {[%clk 0:03:41]} 16... c4
{[%clk 0:04:10.5]} 17. Qa3 {[%clk 0:03:36.2]} 17... Ra8 {[%clk 0:03:59.3]} 18.
Qd6 {[%clk 0:03:32.3]} 18... Bb7 {[%clk 0:03:51.1]} 19. Ne7+ {[%clk 0:03:25.8]}
19... Kh7 {[%clk 0:03:49.1]} 20. Qxd7 {[%clk 0:03:24.3]} 20... Qxd7 {[%clk
0:03:48]} 21. Rxd7 {[%clk 0:03:23.6]} 21... Be4 {[%clk 0:03:44.9]} 22. c3 {[%clk
0:03:18.1]} 22... Bd3 {[%clk 0:03:35.7]} 23. Rd1 {[%clk 0:03:15.9]} 23... Be2
{[%clk 0:03:31.9]} 24. R1d2 {[%clk 0:03:14.4]} 24... Bd3 {[%clk 0:03:30.3]} 25.
Nd5 {[%clk 0:03:12.3]} 25... Be4 {[%clk 0:03:21]} 26. Nf4 {[%clk 0:03:07.5]}
26... Bf5 {[%clk 0:03:15.6]} 27. h3 {[%clk 0:03:05.5]} 27... Bxd7 {[%clk
0:03:13.8]} 28. Rxd7 {[%clk 0:03:03.4]} 28... g6 {[%clk 0:02:59.2]} 29. e6
{[%clk 0:02:59.1]} 29... Kg7 {[%clk 0:02:52.6]} 30. h4 {[%clk 0:02:55.3]} 30...
h5 {[%clk 0:02:41.4]} 31. Kf2 {[%clk 0:02:52.5]} 31... Kf6 {[%clk 0:02:38.1]}
32. e7 {[%clk 0:02:47.2]} 32... Rfe8 {[%clk 0:02:34.7]} 33. Nd5+ {[%clk
0:02:45.9]} 33... Ke6 {[%clk 0:02:32.8]} 34. Rd8 {[%clk 0:02:29.7]} 34... Rexd8
{[%clk 0:02:27.9]} 35. exd8=Q {[%clk 0:02:23.3]} 35... Rxd8 {[%clk 0:02:26.2]}
36. Nc7+ {[%clk 0:02:21.3]} 36... Kd7 {[%clk 0:02:21.4]} 37. Nxa6 {[%clk
0:02:19.7]} 37... Ra8 {[%clk 0:02:19.1]} 38. Nc5+ {[%clk 0:02:17.7]} 38... Kc7
{[%clk 0:02:14.4]} 39. a3 {[%clk 0:02:15.2]} 39... Kc6 {[%clk 0:02:12.3]} 40.
Ne4 {[%clk 0:02:12.4]} 40... Kd5 {[%clk 0:02:10.2]} 41. Nf6+ {[%clk 0:02:09.1]}
41... Ke6 {[%clk 0:02:08.8]} 42. Ne4 {[%clk 0:02:07.3]} 42... Rd8 {[%clk
0:02:06]} 43. Kf3 {[%clk 0:02:02.4]} 43... f5 {[%clk 0:02:00.2]} 44. Nc5+ {[%clk
0:01:59.8]} 44... Kd5 {[%clk 0:01:57.1]} 45. Nb7 {[%clk 0:01:54]} 45... Rb8
{[%clk 0:01:54.9]} 46. Na5 {[%clk 0:01:50.6]} 46... Re8 {[%clk 0:01:49]} 47. g3
{[%clk 0:01:40.4]} 47... Re4 {[%clk 0:01:44.1]} 48. Nb7 {[%clk 0:01:30.4]} 48...
Re7 {[%clk 0:01:36.8]} 49. Nd8 {[%clk 0:01:25.4]} 49... Kd6 {[%clk 0:01:32.5]}
50. Kf4 {[%clk 0:01:18.5]} 50... Kd7 {[%clk 0:01:30.3]} 51. Nb7 {[%clk 0:01:17]}
51... Kc6 {[%clk 0:01:26.4]} 52. Na5+ {[%clk 0:01:15.8]} 52... Kb6 {[%clk
0:01:23.3]} 53. b4 {[%clk 0:01:12.9]} 53... Re4+ {[%clk 0:01:15.6]} 54. Kf3
{[%clk 0:01:11.1]} 54... Rg4 {[%clk 0:01:12.7]} 55. Kf2 {[%clk 0:01:08.4]} 55...
g5 {[%clk 0:01:10.7]} 56. hxg5 {[%clk 0:01:06.3]} 56... Rxg5 {[%clk 0:01:10.6]}
57. Kf3 {[%clk 0:01:05.3]} 57... Rg4 {[%clk 0:01:09.3]} 58. Kf2 {[%clk
0:01:03.9]} 58... h4 {[%clk 0:01:05]} 59. gxh4 {[%clk 0:01:02.6]} 59... Rxh4
{[%clk 0:01:04.4]} 60. Kf3 {[%clk 0:01:01.1]} 60... Rg4 {[%clk 0:01:03.9]} 61.
Kf2 {[%clk 0:00:57.5]} 61... Rh4 {[%clk 0:01:00.1]} 62. Kg3 {[%clk 0:00:56.2]}
62... Re4 {[%clk 0:00:58.1]} 63. Kf3 {[%clk 0:00:55.1]} 63... Kc7 {[%clk
0:00:50.3]} 64. Kf2 {[%clk 0:00:52.9]} 64... Kb6 {[%clk 0:00:47.5]} 65. Kf3
{[%clk 0:00:52]} 65... Rg4 {[%clk 0:00:46.5]} 66. Kf2 {[%clk 0:00:49.7]} 66...
Rh4 {[%clk 0:00:42.4]} 1/2-1/2

[Event "Live Chess"]
[Site "Chess.com"]
[Date "2023.05.20"]
[Round "-"]
[White "MarkLim1"]
[Black "Richardallis"]
[Result "1-0"]
[WhiteElo "1687"]
[BlackElo "1768"]
[TimeControl "300"]
[EndTime "12:13:06 PDT"]
[Termination "MarkLim1 won by resignation"]

1. d4 {[%clk 0:04:58.6]} 1... c5 {[%clk 0:04:58.6]} 2. d5 {[%clk 0:04:57.6]}
2... d6 {[%clk 0:04:57]} 3. Nc3 {[%clk 0:04:56.8]} 3... e5 {[%clk 0:04:56.3]} 4.
e4 {[%clk 0:04:55.8]} 4... f5 {[%clk 0:04:55.2]} 5. exf5 {[%clk 0:04:53.5]} 5...
Bxf5 {[%clk 0:04:53.7]} 6. Bd3 {[%clk 0:04:52.6]} 6... Bxd3 {[%clk 0:04:52.4]}
7. Qxd3 {[%clk 0:04:51.6]} 7... Nf6 {[%clk 0:04:51.8]} 8. Bg5 {[%clk 0:04:50.1]}
8... Be7 {[%clk 0:04:50.6]} 9. O-O-O {[%clk 0:04:47.9]} 9... a6 {[%clk
0:04:48.8]} 10. f4 {[%clk 0:04:44.3]} 10... exf4 {[%clk 0:04:46.6]} 11. Bxf4
{[%clk 0:04:43.1]} 11... O-O {[%clk 0:04:41.2]} 12. Nh3 {[%clk 0:04:36]} 12...
h6 {[%clk 0:04:38.6]} 13. Rhf1 {[%clk 0:04:31.8]} 13... b5 {[%clk 0:04:36]} 14.
Ne4 {[%clk 0:04:26.5]} 14... Nxe4 {[%clk 0:04:31.8]} 15. Qxe4 {[%clk 0:04:25.3]}
15... Nd7 {[%clk 0:04:29.2]} 16. Rde1 {[%clk 0:04:22.9]} 16... Re8 {[%clk
0:04:23]} 17. Qg6 {[%clk 0:04:16]} 17... Ne5 {[%clk 0:04:11.6]} 18. Bxe5 {[%clk
0:04:14.1]} 18... dxe5 {[%clk 0:04:09.6]} 19. Rxe5 {[%clk 0:04:13]} 19... Bg5+
{[%clk 0:04:08.3]} 20. Rxg5 {[%clk 0:03:51.3]} 1-0

[Event "Live Chess"]
[Site "Chess.com"]
[Date "2023.05.20"]
[Round "-"]
[White "Brooms1989"]
[Black "TKDRyan"]
[Result "1-0"]
[WhiteElo "1016"]
[BlackElo "1142"]
[TimeControl "300"]
[EndTime "12:13:07 PDT"]
[Termination "Brooms1989 won by checkmate"]

1. e4 {[%clk 0:04:58]} 1... c5 {[%clk 0:04:51.3]} 2. Nc3 {[%clk 0:04:56.4]} 2...
d6 {[%clk 0:04:49.9]} 3. f4 {[%clk 0:04:54.6]} 3... Nc6 {[%clk 0:04:48.6]} 4.
Bb5 {[%clk 0:04:51.4]} 4... Bd7 {[%clk 0:04:47.2]} 5. Nf3 {[%clk 0:04:49.3]}
5... Nf6 {[%clk 0:04:44.6]} 6. O-O {[%clk 0:04:48]} 6... a6 {[%clk 0:04:43.4]}
7. Bxc6 {[%clk 0:04:46.7]} 7... Bxc6 {[%clk 0:04:42.2]} 8. d3 {[%clk 0:04:46.6]}
8... e6 {[%clk 0:04:38.9]} 9. Qe1 {[%clk 0:04:43.3]} 9... Be7 {[%clk 0:04:37.4]}
10. e5 {[%clk 0:04:38.6]} 10... dxe5 {[%clk 0:04:33.4]} 11. fxe5 {[%clk
0:04:38.5]} 11... Bxf3 {[%clk 0:04:31.6]} 12. Rxf3 {[%clk 0:04:36.2]} 12... Nd5
{[%clk 0:04:30.1]} 13. Qg3 {[%clk 0:04:33.3]} 13... b5 {[%clk 0:04:12.6]} 14.
Qxg7 {[%clk 0:04:24.3]} 14... Kd7 {[%clk 0:04:02.7]} 15. Nxd5 {[%clk 0:04:17.6]}
15... exd5 {[%clk 0:04:00.6]} 16. Qg4+ {[%clk 0:04:15.5]} 16... Kc6 {[%clk
0:03:57.8]} 17. Rxf7 {[%clk 0:04:08.1]} 17... Rg8 {[%clk 0:03:53.3]} 18. Qe6+
{[%clk 0:04:05.7]} 18... Kc7 {[%clk 0:03:34.4]} 19. Rxe7+ {[%clk 0:04:02.8]}
19... Kb8 {[%clk 0:03:31.4]} 20. Rd7 {[%clk 0:03:23.2]} 20... Qh4 {[%clk
0:03:08.4]} 21. Qb6+ {[%clk 0:03:19.1]} 21... Kc8 {[%clk 0:03:06.1]} 22. Qc7#
{[%clk 0:03:18.6]} 1-0

[Event "Live Chess"]
[Site "Chess.com"]
[Date "2023.05.20"]
[Round "-"]
[White "AdamOwls"]
[Black "omisoc"]
[Result "1/2-1/2"]
[WhiteElo "1935"]
[BlackElo "2187"]
[TimeControl "300"]
[EndTime "12:13:11 PDT"]
[Termination "Game drawn by repetition"]

1. e4 {[%clk 0:04:55.3]} 1... b6 {[%clk 0:04:56.4]} 2. d4 {[%clk 0:04:53.2]}
2... Bb7 {[%clk 0:04:56]} 3. Nc3 {[%clk 0:04:52.1]} 3... Nf6 {[%clk 0:04:54.2]}
4. Bd3 {[%clk 0:04:49.9]} 4... e6 {[%clk 0:04:53.1]} 5. Nf3 {[%clk 0:04:49]}
5... Bb4 {[%clk 0:04:51.1]} 6. Bd2 {[%clk 0:04:47]} 6... Bxc3 {[%clk 0:04:49.3]}
7. Bxc3 {[%clk 0:04:45]} 7... Nxe4 {[%clk 0:04:48.3]} 8. Bxe4 {[%clk 0:04:42.7]}
8... Bxe4 {[%clk 0:04:46.1]} 9. O-O {[%clk 0:04:42.3]} 9... O-O {[%clk
0:04:44.3]} 10. Re1 {[%clk 0:04:41.1]} 10... Bxf3 {[%clk 0:04:39.3]} 11. Qxf3
{[%clk 0:04:39.7]} 11... d5 {[%clk 0:04:36.3]} 12. Bd2 {[%clk 0:04:36.4]} 12...
Nd7 {[%clk 0:04:35.1]} 13. Rac1 {[%clk 0:04:32.2]} 13... Qf6 {[%clk 0:04:26.4]}
14. Qg3 {[%clk 0:04:16.8]} 14... Rac8 {[%clk 0:04:22.1]} 15. c4 {[%clk
0:04:12.8]} 15... c5 {[%clk 0:03:23.2]} 16. cxd5 {[%clk 0:03:57.2]} 16... exd5
{[%clk 0:03:17.6]} 17. dxc5 {[%clk 0:03:40.7]} 17... bxc5 {[%clk 0:03:12.2]} 18.
Bg5 {[%clk 0:03:39.3]} 18... Qg6 {[%clk 0:03:06.7]} 19. Re7 {[%clk 0:03:34.9]}
19... Qf5 {[%clk 0:02:57.1]} 20. Bh6 {[%clk 0:03:23]} 20... Qg6 {[%clk
0:02:49.3]} 21. Qxg6 {[%clk 0:03:14.1]} 21... hxg6 {[%clk 0:02:47.4]} 22. Bxg7
{[%clk 0:03:12.8]} 22... Kxg7 {[%clk 0:02:46]} 23. Rxd7 {[%clk 0:03:12.1]} 23...
d4 {[%clk 0:02:45.2]} 24. Rxa7 {[%clk 0:03:10.2]} 24... c4 {[%clk 0:02:37.2]}
25. Rd7 {[%clk 0:03:03.5]} 25... c3 {[%clk 0:02:35]} 26. bxc3 {[%clk 0:03:01.5]}
26... dxc3 {[%clk 0:02:33.2]} 27. Rd3 {[%clk 0:02:58.2]} 27... Ra8 {[%clk
0:02:28.1]} 28. Rc2 {[%clk 0:02:53.9]} 28... Rfb8 {[%clk 0:02:23.8]} 29. g3
{[%clk 0:02:52.3]} 29... Rb2 {[%clk 0:02:22.1]} 30. Rdxc3 {[%clk 0:02:51.2]}
30... Raxa2 {[%clk 0:02:18.6]} 31. Rxb2 {[%clk 0:02:48.7]} 31... Rxb2 {[%clk
0:02:18.5]} 32. h4 {[%clk 0:02:46]} 32... Ra2 {[%clk 0:02:14.1]} 33. Kg2 {[%clk
0:02:45.1]} 33... Rb2 {[%clk 0:02:13.5]} 34. Rc7 {[%clk 0:02:43.1]} 34... Ra2
{[%clk 0:02:12.5]} 35. Rc5 {[%clk 0:02:41.9]} 35... Rb2 {[%clk 0:02:11.4]} 36.
Rc4 {[%clk 0:02:39.9]} 36... Ra2 {[%clk 0:02:09.2]} 37. Rf4 {[%clk 0:02:39.4]}
37... Rb2 {[%clk 0:02:07.4]} 38. Kh3 {[%clk 0:02:38.7]} 38... Ra2 {[%clk
0:02:06.2]} 39. Kg4 {[%clk 0:02:37.9]} 39... Ra5 {[%clk 0:02:05.1]} 40. f3
{[%clk 0:02:35.2]} 40... Rb5 {[%clk 0:02:01.3]} 41. Re4 {[%clk 0:02:29.1]} 41...
Rf5 {[%clk 0:01:59.8]} 42. Rf4 {[%clk 0:02:26.2]} 42... Rd5 {[%clk 0:01:57.9]}
43. Rc4 {[%clk 0:02:24.9]} 43... Rb5 {[%clk 0:01:56.7]} 44. Rc7 {[%clk
0:02:23.6]} 44... Rb4+ {[%clk 0:01:55.2]} 45. f4 {[%clk 0:02:18.7]} 45... Rb5
{[%clk 0:01:54.2]} 46. Re7 {[%clk 0:02:16.5]} 46... Rb3 {[%clk 0:01:52.8]} 47.
Re5 {[%clk 0:02:15.1]} 47... Ra3 {[%clk 0:01:51.1]} 48. h5 {[%clk 0:02:13.5]}
48... gxh5+ {[%clk 0:01:49.9]} 49. Rxh5 {[%clk 0:02:13.3]} 49... Rb3 {[%clk
0:01:47.2]} 50. Rg5+ {[%clk 0:02:11.5]} 50... Kf6 {[%clk 0:01:46.2]} 51. Rf5+
{[%clk 0:02:10.7]} 51... Kg6 {[%clk 0:01:44.6]} 52. Rg5+ {[%clk 0:02:09]} 52...
Kf6 {[%clk 0:01:44]} 53. Rf5+ {[%clk 0:02:08.3]} 53... Kg6 {[%clk 0:01:43.2]}
54. Rg5+ {[%clk 0:02:07.7]} 54... Kf6 {[%clk 0:01:42.1]} 1/2-1/2

[Event "Live Chess"]
[Site "Chess.com"]
[Date "2023.05.20"]
[Round "-"]
[White "Horseymobile"]
[Black "whitedjohn"]
[Result "0-1"]
[WhiteElo "1191"]
[BlackElo "1663"]
[TimeControl "300"]
[EndTime "12:13:17 PDT"]
[Termination "whitedjohn won by resignation"]

1. d4 {[%clk 0:04:57.4]} 1... Nf6 {[%clk 0:04:55.9]} 2. c4 {[%clk 0:04:54.8]}
2... c5 {[%clk 0:04:53.2]} 3. d5 {[%clk 0:04:50.5]} 3... e6 {[%clk 0:04:50.9]}
4. Nc3 {[%clk 0:04:49.9]} 4... exd5 {[%clk 0:04:46.5]} 5. cxd5 {[%clk
0:04:47.9]} 5... d6 {[%clk 0:04:44.9]} 6. Nf3 {[%clk 0:04:44.6]} 6... g6 {[%clk
0:04:43.2]} 7. Bf4 {[%clk 0:04:41.5]} 7... a6 {[%clk 0:04:36.1]} 8. a4 {[%clk
0:04:38.9]} 8... b6 {[%clk 0:04:34.3]} 9. e4 {[%clk 0:04:35.1]} 9... Bg7 {[%clk
0:04:31.7]} 10. Be2 {[%clk 0:04:28.4]} 10... O-O {[%clk 0:04:28.6]} 11. O-O
{[%clk 0:04:25.7]} 11... Bg4 {[%clk 0:04:26.5]} 12. Re1 {[%clk 0:04:15.7]} 12...
Bxf3 {[%clk 0:04:22.2]} 13. Bxf3 {[%clk 0:04:14.2]} 13... Qc7 {[%clk 0:04:15.9]}
14. e5 {[%clk 0:03:53.9]} 14... Ne8 {[%clk 0:04:11]} 15. Bg4 {[%clk 0:03:25.1]}
15... Nd7 {[%clk 0:04:04.2]} 16. e6 {[%clk 0:03:19.7]} 16... Ne5 {[%clk
0:03:48.5]} 17. Bxe5 {[%clk 0:03:07.6]} 17... Bxe5 {[%clk 0:03:44.4]} 18. exf7+
{[%clk 0:02:11.1]} 18... Rxf7 {[%clk 0:03:22.5]} 19. Be6 {[%clk 0:02:05.7]}
19... Nf6 {[%clk 0:03:17.5]} 20. Bxf7+ {[%clk 0:02:00.3]} 20... Qxf7 {[%clk
0:03:17]} 21. Ne4 {[%clk 0:01:40.6]} 21... Nxd5 {[%clk 0:03:10.4]} 22. Ng5
{[%clk 0:01:31.4]} 22... Bxh2+ {[%clk 0:02:53.5]} 23. Kxh2 {[%clk 0:01:28.5]}
23... Qf4+ {[%clk 0:02:52]} 24. Kg1 {[%clk 0:01:21.8]} 24... Qxg5 {[%clk
0:02:45.3]} 25. Qe2 {[%clk 0:01:18.5]} 25... Nf4 {[%clk 0:02:38.8]} 26. Qf3
{[%clk 0:01:12.7]} 26... Rf8 {[%clk 0:02:34.4]} 27. Re4 {[%clk 0:01:04.2]} 27...
d5 {[%clk 0:02:08.4]} 28. Re3 {[%clk 0:00:38.3]} 28... d4 {[%clk 0:02:02.5]} 29.
Re4 {[%clk 0:00:29.8]} 29... d3 {[%clk 0:01:57.3]} 30. Rae1 {[%clk 0:00:18.4]}
30... Ne2+ {[%clk 0:01:50.7]} 31. R4xe2 {[%clk 0:00:15.7]} 31... Rxf3 {[%clk
0:01:47]} 32. Re8+ {[%clk 0:00:14.6]} 32... Kg7 {[%clk 0:01:42.2]} 33. R1e7+
{[%clk 0:00:13.4]} 33... Rf7 {[%clk 0:01:39.5]} 34. Rxf7+ {[%clk 0:00:09.4]}
34... Kxf7 {[%clk 0:01:38.3]} 0-1

[Event "Live Chess"]
[Site "Chess.com"]
[Date "2023.05.20"]
[Round "-"]
[White "mpersander"]
[Black "hturner40"]
[Result "0-1"]
[WhiteElo "1000"]
[BlackElo "1799"]
[TimeControl "300"]
[EndTime "12:13:21 PDT"]
[Termination "hturner40 won by resignation"]

1. e4 {[%clk 0:04:52.5]} 1... Nc6 {[%clk 0:04:58.2]} 2. d4 {[%clk 0:04:37.8]}
2... e5 {[%clk 0:04:56.9]} 3. d5 {[%clk 0:04:34.5]} 3... Nce7 {[%clk 0:04:55.4]}
4. c4 {[%clk 0:04:04.3]} 4... Ng6 {[%clk 0:04:52.5]} 5. Nf3 {[%clk 0:03:56.8]}
5... Bc5 {[%clk 0:04:48.7]} 6. Nc3 {[%clk 0:03:48.3]} 6... a5 {[%clk 0:04:44.5]}
7. Na4 {[%clk 0:03:43.6]} 7... Ba7 {[%clk 0:04:39.3]} 8. Be2 {[%clk 0:03:36.7]}
8... d6 {[%clk 0:04:34.7]} 9. O-O {[%clk 0:03:31.5]} 9... Nf6 {[%clk 0:04:33.3]}
10. Bd3 {[%clk 0:03:18.2]} 10... Nh5 {[%clk 0:04:27.5]} 11. Nxe5 {[%clk
0:03:12.5]} 11... Nxe5 {[%clk 0:04:24.8]} 12. Qxh5 {[%clk 0:03:10.2]} 12... Nxd3
{[%clk 0:04:22.7]} 13. Qf3 {[%clk 0:02:45.7]} 13... Ne5 {[%clk 0:04:16]} 14. Qg3
{[%clk 0:02:38.9]} 14... O-O {[%clk 0:04:11.4]} 15. Bh6 {[%clk 0:02:36.5]} 15...
Ng4 {[%clk 0:03:45.4]} 16. Bxg7 {[%clk 0:02:29.8]} 16... Kxg7 {[%clk 0:03:39.1]}
17. h3 {[%clk 0:02:26]} 17... h5 {[%clk 0:03:36.3]} 18. hxg4 {[%clk 0:02:24.6]}
18... hxg4 {[%clk 0:03:35.1]} 19. Nc3 {[%clk 0:02:16]} 19... Rh8 {[%clk
0:03:26]} 20. a3 {[%clk 0:02:03.1]} 20... Qh4 {[%clk 0:03:19.1]} 21. Qxh4 {[%clk
0:01:59.1]} 21... Rxh4 {[%clk 0:03:14.5]} 22. g3 {[%clk 0:01:57.9]} 22... Rh3
{[%clk 0:03:10.4]} 23. Kg2 {[%clk 0:01:55.9]} 23... Bd7 {[%clk 0:03:00.6]} 24.
b4 {[%clk 0:01:50.4]} 24... Rah8 {[%clk 0:02:54.9]} 25. Rh1 {[%clk 0:01:40.2]}
25... Rxh1 {[%clk 0:02:46.9]} 26. Rxh1 {[%clk 0:01:38.6]} 26... Rxh1 {[%clk
0:02:45.1]} 27. Kxh1 {[%clk 0:01:37.6]} 27... axb4 {[%clk 0:02:40.5]} 28. axb4
{[%clk 0:01:35.2]} 28... Bxf2 {[%clk 0:02:39]} 29. Kg2 {[%clk 0:01:33]} 29...
Bd4 {[%clk 0:02:36.5]} 30. Nb5 {[%clk 0:01:31.6]} 30... Bb6 {[%clk 0:02:33.8]}
31. Nc3 {[%clk 0:01:13.3]} 31... Kf6 {[%clk 0:02:26]} 32. Kf1 {[%clk 0:01:07.1]}
32... Ke5 {[%clk 0:02:24.1]} 33. Ne2 {[%clk 0:00:54.6]} 33... Kxe4 {[%clk
0:02:19.5]} 34. Nf4 {[%clk 0:00:51.9]} 34... Be3 {[%clk 0:02:13.2]} 35. Nh5
{[%clk 0:00:44.8]} 35... Bg5 {[%clk 0:02:04.3]} 36. Ng7 {[%clk 0:00:41.2]} 36...
Kd4 {[%clk 0:02:01.8]} 37. Ke2 {[%clk 0:00:38.6]} 37... Kxc4 {[%clk 0:01:59.6]}
38. b5 {[%clk 0:00:36]} 38... Kxb5 {[%clk 0:01:56.6]} 39. Kd3 {[%clk 0:00:34.8]}
39... Kc5 {[%clk 0:01:46.1]} 40. Nh5 {[%clk 0:00:31.3]} 40... b5 {[%clk
0:01:43]} 41. Ke4 {[%clk 0:00:27.6]} 41... f5+ {[%clk 0:01:39.4]} 42. Kd3 {[%clk
0:00:24.1]} 42... b4 {[%clk 0:01:37.8]} 0-1

[Event "Live Chess"]
[Site "Chess.com"]
[Date "2023.05.20"]
[Round "-"]
[White "SupremeTactician"]
[Black "BritishIsles"]
[Result "0-1"]
[WhiteElo "2386"]
[BlackElo "2421"]
[TimeControl "300"]
[EndTime "12:13:42 PDT"]
[Termination "BritishIsles won by resignation"]

1. e4 {[%clk 0:04:53]} 1... d5 {[%clk 0:04:53.6]} 2. exd5 {[%clk 0:04:52.1]}
2... Qxd5 {[%clk 0:04:52.7]} 3. Nc3 {[%clk 0:04:51.2]} 3... Qe5+ {[%clk
0:04:51.7]} 4. Be2 {[%clk 0:04:48.7]} 4... c6 {[%clk 0:04:50.4]} 5. Nf3 {[%clk
0:04:47.9]} 5... Qc7 {[%clk 0:04:49.6]} 6. d4 {[%clk 0:04:46.8]} 6... Bf5 {[%clk
0:04:48.3]} 7. Be3 {[%clk 0:04:43.5]} 7... e6 {[%clk 0:04:47]} 8. O-O {[%clk
0:04:42.7]} 8... Nf6 {[%clk 0:04:43.6]} 9. Ne5 {[%clk 0:04:38.3]} 9... Nbd7
{[%clk 0:04:42.3]} 10. Bd3 {[%clk 0:04:35.4]} 10... Bxd3 {[%clk 0:04:35.6]} 11.
Nxd3 {[%clk 0:04:29.9]} 11... Bd6 {[%clk 0:04:25.6]} 12. h3 {[%clk 0:04:25.2]}
12... O-O {[%clk 0:04:20.3]} 13. Qf3 {[%clk 0:04:22.8]} 13... e5 {[%clk
0:04:15.5]} 14. dxe5 {[%clk 0:04:19.8]} 14... Nxe5 {[%clk 0:04:14.2]} 15. Nxe5
{[%clk 0:04:19.1]} 15... Bxe5 {[%clk 0:04:14.1]} 16. Bg5 {[%clk 0:03:59.2]}
16... Rfe8 {[%clk 0:04:09.1]} 17. Rfe1 {[%clk 0:03:48.3]} 17... Bxc3 {[%clk
0:03:59.3]} 18. Qxc3 {[%clk 0:03:40.6]} 18... Ne4 {[%clk 0:03:56.6]} 19. Qe3
{[%clk 0:03:39.2]} 19... Re6 {[%clk 0:03:50.3]} 20. Bf4 {[%clk 0:03:36]} 20...
Qa5 {[%clk 0:03:38.4]} 21. c3 {[%clk 0:03:15.9]} 21... Rae8 {[%clk 0:03:34.8]}
22. Qf3 {[%clk 0:03:14.8]} 22... Ng5 {[%clk 0:03:25.8]} 0-1

[Event "Live Chess"]
[Site "Chess.com"]
[Date "2023.05.20"]
[Round "-"]
[White "tuppyglossop"]
[Black "ElectricFalcon"]
[Result "1-0"]
[WhiteElo "1598"]
[BlackElo "1065"]
[TimeControl "300"]
[EndTime "12:13:46 PDT"]
[Termination "tuppyglossop won by resignation"]

1. e4 {[%clk 0:04:57.3]} 1... e5 {[%clk 0:04:59.2]} 2. Nf3 {[%clk 0:04:56]} 2...
Nc6 {[%clk 0:04:58.3]} 3. Bb5 {[%clk 0:04:54.6]} 3... Bc5 {[%clk 0:04:57.5]} 4.
O-O {[%clk 0:04:52.8]} 4... Nf6 {[%clk 0:04:55.8]} 5. d3 {[%clk 0:04:51.9]} 5...
O-O {[%clk 0:04:54.7]} 6. c3 {[%clk 0:04:49]} 6... a6 {[%clk 0:04:54.1]} 7. Ba4
{[%clk 0:04:48]} 7... b5 {[%clk 0:04:53.2]} 8. Bc2 {[%clk 0:04:46.9]} 8... d5
{[%clk 0:04:48.4]} 9. Bg5 {[%clk 0:04:40.4]} 9... dxe4 {[%clk 0:04:46.8]} 10.
dxe4 {[%clk 0:04:38.5]} 10... Be7 {[%clk 0:04:43.4]} 11. Qe2 {[%clk 0:04:33.6]}
11... Bg4 {[%clk 0:04:38.9]} 12. Rd1 {[%clk 0:04:30.3]} 12... Qc8 {[%clk
0:04:28.5]} 13. h3 {[%clk 0:04:28.8]} 13... Bxf3 {[%clk 0:04:26.8]} 14. Qxf3
{[%clk 0:04:28.7]} 14... Qe6 {[%clk 0:04:14.1]} 15. Nd2 {[%clk 0:04:25.5]} 15...
Rad8 {[%clk 0:04:08.2]} 16. Bb3 {[%clk 0:04:21.6]} 16... Qd6 {[%clk 0:03:57.5]}
17. Nf1 {[%clk 0:04:18.8]} 17... Qc5 {[%clk 0:03:55.4]} 18. Be3 {[%clk
0:04:08.2]} 18... Nd4 {[%clk 0:03:46.7]} 19. cxd4 {[%clk 0:04:04.9]} 19... exd4
{[%clk 0:03:45.8]} 20. Rac1 {[%clk 0:03:59.7]} 20... Qa7 {[%clk 0:03:34.9]} 21.
Bg5 {[%clk 0:03:54.6]} 21... Qb8 {[%clk 0:03:33.4]} 22. e5 {[%clk 0:03:49.8]}
22... h6 {[%clk 0:03:27.1]} 23. exf6 {[%clk 0:03:47]} 23... Bxf6 {[%clk
0:03:20.8]} 24. Bxf6 {[%clk 0:03:45.9]} 24... gxf6 {[%clk 0:03:20]} 25. Qxf6
{[%clk 0:03:44.8]} 25... Qb6 {[%clk 0:03:11.1]} 26. Qxh6 {[%clk 0:03:35.1]}
26... Qxh6 {[%clk 0:03:09.3]} 27. Ng3 {[%clk 0:03:30.9]} 27... d3 {[%clk
0:03:05.4]} 28. Nf5 {[%clk 0:03:28.4]} 28... Qb6 {[%clk 0:02:54.6]} 29. Ne7+
{[%clk 0:03:19.4]} 29... Kg7 {[%clk 0:02:51.8]} 30. Rc6 {[%clk 0:03:14.3]} 30...
Qd4 {[%clk 0:02:38.5]} 31. Nf5+ {[%clk 0:03:10.8]} 31... Kg8 {[%clk 0:02:36.4]}
32. Nxd4 {[%clk 0:03:10.7]} 32... Rxd4 {[%clk 0:02:35.6]} 33. Rxc7 {[%clk
0:03:07.3]} 33... d2 {[%clk 0:02:32.6]} 34. Kf1 {[%clk 0:03:02.6]} 34... Kh8
{[%clk 0:02:30.7]} 35. Bxf7 {[%clk 0:02:55.2]} 35... Rfd8 {[%clk 0:02:27.2]} 36.
Bb3 {[%clk 0:02:51.6]} 36... Re4 {[%clk 0:02:26.1]} 37. Rc6 {[%clk 0:02:47.4]}
37... a5 {[%clk 0:02:10.6]} 38. Bc2 {[%clk 0:02:39]} 38... Rb4 {[%clk
0:02:00.8]} 39. b3 {[%clk 0:02:33.8]} 39... a4 {[%clk 0:01:55.3]} 40. bxa4
{[%clk 0:02:32.5]} 40... bxa4 {[%clk 0:01:54.6]} 41. Ke2 {[%clk 0:02:21.1]}
41... Rbd4 {[%clk 0:01:49]} 42. g3 {[%clk 0:01:57.5]} 42... Re8+ {[%clk
0:01:47.2]} 43. Kf1 {[%clk 0:01:53.7]} 43... a3 {[%clk 0:01:41.7]} 44. h4 {[%clk
0:01:51.4]} 44... Kg7 {[%clk 0:01:39.6]} 45. Kg2 {[%clk 0:01:49.9]} 45... Re1
{[%clk 0:01:32.4]} 46. Rc3 {[%clk 0:01:37.8]} 46... Rxd1 {[%clk 0:01:25.9]} 47.
Bxd1 {[%clk 0:01:36.4]} 47... Kf6 {[%clk 0:01:21.4]} 48. Rxa3 {[%clk 0:01:35]}
48... Ke5 {[%clk 0:01:20.7]} 49. Kf1 {[%clk 0:01:34]} 49... Kf5 {[%clk
0:01:19.9]} 50. Ke2 {[%clk 0:01:32.7]} 50... Kg4 {[%clk 0:01:17.2]} 51. Rd3
{[%clk 0:01:29.6]} 51... Re4+ {[%clk 0:01:12.2]} 52. Kxd2+ {[%clk 0:01:24.8]}
52... Kf5 {[%clk 0:01:08.1]} 53. f3 {[%clk 0:01:20]} 53... Ra4 {[%clk
0:01:05.4]} 54. Bb3 {[%clk 0:01:16.9]} 54... Ra8 {[%clk 0:00:58.7]} 55. Rd5+
{[%clk 0:01:15.4]} 55... Ke6 {[%clk 0:00:57.1]} 56. Rd8+ {[%clk 0:01:14]} 1-0